[Event "26th OIBM 2023"]
[Site "Gmund am Tegernsee"]
[Date "2023.11.01"]
[Round "5.11"]
[White "Bauer, Christian"]
[Black "Wyss, Jonas"]
[Result "1-0"]
[ECO "A16"]
[WhiteElo "2552"]
[BlackElo "2265"]
[Annotator "TA"]
[PlyCount "93"]
[EventDate "2023.10.04"]
[EventType "swiss"]
[EventCountry "GER"]
[SourceTitle "playchess.com"]
[Source "ChessBase"]
[SourceQuality "1"]
[TimeControl "40/5400+30:1800+30"]

{[%evp 9,93,22,27,0,0,12,0,-16,-3,-37,-31,-42,-43,-77,-78,-78,-78,-66,-83,-90,-80,-87,-87,-88,-83,-94,-96,-125,0,0,0,0,0,0,0,0,0,0,0,0,0,-1,0,0,119,120,120,120,376,375,656,670,789,789,789,704,803,771,1104,921,884,815,445,1087,1071,1052,1028,1016,1655,1681,1643,1580,12841,12842,12842,12843,12843,12843,12847,12847,29987,29988,12847,12847,12848,12848]} 1. Nf3 {[%emt 0:00:08]} Nf6 {[%emt 0:00:10]} 2. c4 {[%emt 0:00:11]} g6 {[%emt 0:00:10]} 3. Nc3 {[%emt 0:02:32]} d5 {[%emt 0:00:13]} 4. cxd5 {[%emt 0:00:13]} Nxd5 {[%emt 0:00:08]} 5. h4 {[%emt 0:01:23]} Bg7 {[%emt 0:00:26]} 6. h5 {[%emt 0:00:58] A16: English Opening: 1...Nf6 with ...d5.} Nc6 {[%emt 0:00:38]} 7. g3 {[%emt 0:08:38]} Bf5 {[%emt 0:11:05] [#] Hoping for ...Ncb4.} 8. Qa4 $146 {[%emt 0:09:30] The position is equal.} ({Predecessor:} 8. Bg2 Ncb4 9. O-O Nxc3 10. bxc3 Bc2 11. Qe1 Be4 12. Qd1 Bc2 13. Qe1 Be4 14. Qd1 Bc2 15. Qe1 Be4 16. Qd1 {½-½ Shankland,S (2666)-Zherebukh,Y (2605) USA-ch Saint Louis 2017 (4)}) 8... Nb6 {[%emt 0:08:34]} 9. Qb3 {[%emt 0:01:30]} Bg4 {[%emt 0:10:20]} 10. h6 {[%emt 0:08:08]} Bf6 {[%emt 0:02:22]} 11. Ne4 {[%emt 0:00:12]} e5 {[%emt 0:01:55]} 12. Bh3 {[%emt 0:12:16]} Bxh3 {[%emt 0:01:56]} 13. Rxh3 {[%emt 0:00:01]} Be7 {[%emt 0:03:45]} 14. d3 {[%emt 0:02:29]} Qd7 {[%emt 0:02:33]} 15. Rh1 {[%emt 0:00:11]} O-O-O {[%emt 0:05:17]} 16. Be3 {[%emt 0:06:54]} f5 {[%emt 0:06:57]} 17. Nc3 {[%emt 0:04:44]} Bf6 {[%emt 0:08:40]} 18. Rc1 {[%emt 0:01:34] [#]} e4 {[%emt 0:08:04]} 19. dxe4 $11 {[%emt 0:02:15]} Bxc3+ {[%emt 0:00:16][%mdl 64] Remove Defender} 20. Qxc3 {[%emt 0:07:45]} fxe4 {[%emt 0:00:27]} 21. Ne5 {[%emt 0:05:07]} Nxe5 {[%emt 0:06:45]} 22. Qxe5 {[%emt 0:00:01][%cal Oe3f4]} Nc4 {[%emt 0:00:59][%mdl 64] Deflection, Back Rank} 23. Qc5 {[%emt 0:05:16] Some like it hot. Active counter play!} Nxe3 {[%emt 0:00:26]} (23... Nxb2 24. Kf1 b6 25. Qb4 $18) 24. Qxe3 {[%emt 0:00:01]} Rhe8 {[%emt 0:02:36]} 25. Rh4 {[%emt 0:04:34]} Kb8 {[%emt 0:03:21][%cal Og6g5]} 26. Kf1 {[%emt 0:00:56][%cal Of1g2]} Qd2 {[%emt 0:02:33] [#]} (26... Qe6 $11) 27. Qxd2 $1 $16 {[%emt 0:02:28]} Rxd2 {[%emt 0:00:09]} 28. Rc4 {[%emt 0:00:02]} Rxb2 $2 {[%emt 0:01:04][%mdl 8192] A mistake that costs the game.} (28... Kc8 $16) 29. Rhxe4 $18 {[%emt 0:00:06]} Rxe4 {[%emt 0:01:18]} (29... Rc8 30. Re7 Rxa2 31. Rxh7 Rd2) 30. Rxe4 $16 {[%emt 0:00:08][%cal Re4e8][%mdl 4096] Endgame KR-KR} c5 {[%emt 0:00:07][%cal Ob2d2]} 31. Re8+ {[%emt 0:02:57]} Kc7 {[%emt 0:00:04]} 32. Re7+ {[%emt 0:00:03]} Kb6 {[%emt 0:04:43]} 33. Rxh7 {[%emt 0:00:17]} c4 {[%emt 0:00:30] [#]} 34. Rc7 $3 {[%emt 0:07:33][%mdl 576] Clearance, Promotion} Kxc7 $18 {[%emt 0:05:21] KR-KP} 35. h7 {[%emt 0:00:01]} Rb1+ {[%emt 0:00:49]} 36. Kg2 {[%emt 0:00:01]} Rb6 {[%emt 0:00:10]} 37. h8=Q {[%emt 0:00:07] KQ-KR} (37. h8=R $2 Ra6 38. Kf3 Rxa2 39. Rh7+ Kc6 $19) 37... Rc6 {[%emt 0:00:07]} 38. Qc3 {[%emt 0:01:23]} Kb6 {[%emt 0:01:07]} 39. f4 {[%emt 0:02:49]} Kb5 {[%emt 0:02:46]} 40. g4 {[%emt 0:00:52] And now f5 would win.} Ka4 {[%emt 0:00:16]} 41. f5 {[%emt 0:31:41]} gxf5 {[%emt 0:01:59]} 42. gxf5 {[%emt 0:00:00]} b5 {[%emt 0:00:16]} 43. f6 {[%emt 0:00:00]} b4 {[%emt 0:01:06]} 44. Qc2+ {[%emt 0:00:00]} Ka3 {[%emt 0:00:30]} 45. f7 {[%emt 0:00:00]} Rc8 {[%emt 0:00:27] [#]} 46. f8=Q $1 {[%emt 0:00:00]} Rxf8 {[%emt 0:00:11]} 47. Qxc4 {[%emt 0:00:00] Excellently played by Bauer!   Weighted Error Value: White=0.07 (flawless) /Black=0.30} 1-0

[Event "26th OIBM 2023"]
[Site "Gmund am Tegernsee"]
[Date "2023.11.01"]
[Round "5.12"]
[White "Andrade, Ruben"]
[Black "Meissner, Felix"]
[Result "0-1"]
[ECO "B90"]
[WhiteElo "1797"]
[BlackElo "2382"]
[Annotator "ChessBase"]
[PlyCount "80"]
[EventDate "2023.10.04"]
[EventType "swiss"]
[EventCountry "GER"]
[SourceTitle "playchess.com"]
[Source "ChessBase"]
[SourceQuality "1"]
[TimeControl "40/5400+30:1800+30"]

1. e4 {[%emt 0:00:02]} c5 {[%emt 0:00:04]} 2. Nf3 {[%emt 0:00:05]} d6 {[%emt 0:00:05]} 3. d4 {[%emt 0:00:04]} cxd4 {[%emt 0:00:04]} 4. Nxd4 {[%emt 0:00:04]} Nf6 {[%emt 0:00:06]} 5. Nc3 {[%emt 0:00:04]} a6 {[%emt 0:00:05]} 6. Bd3 {[%emt 0:00:12]} Nc6 {[%emt 0:00:27]} 7. Nxc6 {[%emt 0:09:52]} bxc6 {[%emt 0:00:05]} 8. O-O {[%emt 0:01:32]} g6 {[%emt 0:01:08]} 9. f3 {[%emt 0:09:22]} Qb6+ {[%emt 0:02:35]} 10. Kh1 {[%emt 0:00:06]} Bg7 {[%emt 0:00:15]} 11. Na4 {[%emt 0:07:19]} Qc7 {[%emt 0:06:44]} 12. Be3 {[%emt 0:05:33]} Nd7 {[%emt 0:02:41]} 13. c4 {[%emt 0:03:26]} c5 {[%emt 0:02:38]} 14. Nc3 {[%emt 0:02:19]} e6 {[%emt 0:00:30]} 15. Rb1 {[%emt 0:00:30]} O-O {[%emt 0:00:30]} 16. Qd2 {[%emt 0:00:30]} Ne5 {[%emt 0:00:30]} 17. Be2 {[%emt 0:00:30]} Nc6 {[%emt 0:00:30]} 18. Rfc1 {[%emt 0:00:30]} Rb8 {[%emt 0:00:30]} 19. Nd1 {[%emt 0:00:30]} Nd4 {[%emt 0:00:30]} 20. Bf1 {[%emt 0:00:30]} Bb7 {[%emt 0:00:30]} 21. b4 {[%emt 0:00:30]} f5 {[%emt 0:00:30]} 22. Nf2 {[%emt 0:00:30]} Rf7 {[%emt 0:00:30]} 23. a3 {[%emt 0:00:30]} Rbf8 {[%emt 0:00:30]} 24. Bxd4 {[%emt 0:00:30]} Bxd4 {[%emt 0:00:30]} 25. exf5 {[%emt 0:00:30]} gxf5 {[%emt 0:00:30]} 26. b5 {[%emt 0:00:30]} Rg7 {[%emt 0:00:30]} 27. Nd3 {[%emt 0:00:30]} e5 {[%emt 0:00:30]} 28. Ne1 {[%emt 0:00:30]} e4 {[%emt 0:00:30]} 29. f4 {[%emt 0:00:30]} e3 {[%emt 0:00:30]} 30. Qe2 {[%emt 0:00:30]} Rg4 {[%emt 0:00:30]} 31. bxa6 {[%emt 0:00:30]} Bc6 {[%emt 0:00:30]} 32. Nd3 {[%emt 0:00:30]} Qa5 {[%emt 0:00:30]} 33. Rb3 {[%emt 0:00:30]} Qxa6 {[%emt 0:00:30]} 34. Ne1 {[%emt 0:00:30]} Rxf4 {[%emt 0:00:30]} 35. Nf3 {[%emt 0:00:30]} Re4 {[%emt 0:00:30]} 36. Rcb1 {[%emt 0:00:30]} Qa8 {[%emt 0:00:30]} 37. Nxd4 {[%emt 0:00:30]} cxd4 {[%emt 0:00:30]} 38. Qh5 {[%emt 0:00:30]} Rh4 {[%emt 0:00:30]} 39. R3b2 {[%emt 0:00:30]} Be4 {[%emt 0:00:30]} 40. Qh6 {[%emt 0:00:30]} Bxg2+ {[%emt 0:00:30]} 0-1

[Event "26th OIBM 2023"]
[Site "Gmund am Tegernsee"]
[Date "2023.11.01"]
[Round "5.13"]
[White "Deglmann, Ludwig"]
[Black "Lagarde, Maxime"]
[Result "1/2-1/2"]
[ECO "A20"]
[WhiteElo "2243"]
[BlackElo "2626"]
[Annotator "TA"]
[PlyCount "40"]
[EventDate "2023.10.04"]
[EventType "swiss"]
[EventCountry "GER"]
[SourceTitle "playchess.com"]
[Source "ChessBase"]
[SourceQuality "1"]
[TimeControl "40/5400+30:1800+30"]

{[%evp 9,40,8,19,0,15,0,0,0,0,0,0,0,0,0,15,0,16,20,28,0,35,21,35,29,8,12,52,0,0,0,50,0,4]} 1. c4 {[%emt 0:00:06]} e5 {[%emt 0:00:03][%cal Be7e5,Be5e4][%mdl 32]} 2. g3 {[%emt 0:00:35]} c6 {[%emt 0:00:11]} 3. d4 {[%emt 0:00:22]} e4 {[%emt 0:00:05]} 4. a3 {[%emt 0:00:05]} d5 {[%emt 0:01:42]} 5. Nc3 {[%emt 0:02:19]} Nf6 {[%emt 0:00:28]} 6. Bg2 {[%emt 0:00:42] A20: English Opening: 1...e5.} dxc4 {[%emt 0:14:46]} 7. f3 {[%emt 0:04:22]} exf3 $1 {[%emt 0:08:31]} 8. Nxf3 {[%emt 0:01:38]} Nbd7 {[%emt 0:00:20][%cal Bb8d7,Bd7b6,Bb6c8][%mdl 32]} 9. e4 {[%emt 0:04:15]} Nb6 {[%emt 0:01:12]} 10. O-O {[%emt 0:01:30]} h6 {[%emt 0:00:21] [#]} 11. h3 $146 {[%emt 0:01:38]} ({Predecessor:} 11. Ne5 Be6 12. Be3 Bd6 13. Nf3 Bc7 14. Kh1 Qe7 15. Qc2 O-O 16. Rae1 Rae8 17. d5 cxd5 18. Bxb6 dxe4 19. Bxa7 exf3 20. Bxf3 {0-1 Janoszka,A (2353)-Lagarde,M (2655) Zuerich op 43rd 2019 (7)}) 11... Be6 {[%emt 0:03:26]} 12. Kh2 {[%emt 0:04:22][%mdl 1024] White has compensation.} Be7 {[%emt 0:07:57]} 13. Be3 {[%emt 0:04:16]} O-O {[%emt 0:03:12]} 14. a4 {[%emt 0:01:29]} Nc8 {[%emt 0:07:48]} 15. Qe2 {[%emt 0:04:39]} Re8 {[%emt 0:03:09]} 16. Rad1 {[%emt 0:03:07][%cal Od4d5]} Bf8 {[%emt 0:04:13]} 17. Nh4 {[%emt 0:06:35]} Nh7 {[%emt 0:01:26]} 18. Qh5 {[%emt 0:07:59]} (18. Qf2 $14 Qf6 19. Qc2) 18... Nf6 $11 {[%emt 0:09:39]} 19. Qe2 {[%emt 0:03:26]} (19. Qf3 $11) 19... Nh7 $14 {[%emt 0:11:42]} 20. Qh5 {[%emt 0:02:06]} (20. Qf3 $14 Qe7 21. Qe2) 20... Nf6 {[%emt 0:00:32] A rather calm draw.   Weighted Error Value: White=0.12 (very precise) /Black=0.07 (flawless)} 1/2-1/2

[Event "26th OIBM 2023"]
[Site "Gmund am Tegernsee"]
[Date "2023.11.01"]
[Round "5.14"]
[White "Kurmangaliyeva, Liya"]
[Black "Petrov, Nikita"]
[Result "0-1"]
[ECO "A96"]
[WhiteElo "2236"]
[BlackElo "2551"]
[Annotator "TA"]
[PlyCount "104"]
[EventDate "2023.10.04"]
[EventType "swiss"]
[EventCountry "GER"]
[SourceTitle "playchess.com"]
[Source "ChessBase"]
[SourceQuality "1"]
[TimeControl "40/5400+30:1800+30"]

{[%evp 16,104,39,0,3,0,8,8,4,17,12,6,74,33,66,56,73,63,62,60,65,55,49,40,45,6,6,0,0,-74,-80,-85,-75,-95,-58,-255,-91,-95,-75,-91,-104,-187,-81,-234,-171,-335,-312,-333,-340,-336,-322,-476,-447,-442,-374,-500,-492,-485,-385,-580,-581,-579,-561,-504,-500,-591,-591,-578,-583,-722,-710,-635,-629,-931,-889,-885,-892,-1079,-1060,-942,-852,-894,-902,-914,-910,-741,-748,-718,-708,-5393,-1503]} 1. d4 {[%emt 0:00:11]} f5 {[%emt 0:00:17]} 2. c4 {[%emt 0:04:21]} Nf6 {[%emt 0:00:33]} 3. Nf3 {[%emt 0:00:07]} e6 {[%emt 0:00:35]} 4. g3 {[%emt 0:08:31]} Be7 {[%emt 0:01:16]} 5. Bg2 {[%emt 0:00:54]} O-O {[%emt 0:00:11]} 6. O-O {[%emt 0:03:39]} d6 {[%emt 0:00:08]} 7. Nc3 {[%emt 0:05:46]} Ne4 {[%emt 0:00:19]} 8. Qc2 {[%emt 0:07:52]} Nxc3 {[%emt 0:01:58]} 9. bxc3 {[%emt 0:02:48]} Nc6 {[%emt 0:02:54] A96: Classical Dutch: Fluid Systems: Early deviations.} 10. d5 {[%emt 0:04:53]} Na5 {[%emt 0:06:31]} 11. dxe6 {[%emt 0:01:13]} c5 {[%emt 0:38:30] Wards off Nd4. The position is equal.} 12. e4 {[%emt 0:05:10]} Bxe6 {[%emt 0:00:09]} 13. Re1 {[%emt 0:00:46]} Nc6 {[%emt 0:07:09]} (13... Kh8 $11) 14. Be3 {[%emt 0:11:58]} (14. Bf4 $5 {[%cal Re4e5]}) 14... Qa5 {[%emt 0:14:52] [#]} 15. Bg5 $146 {[%emt 0:05:51]} ({Predecessor:} 15. Bh3 Bxc4 16. Nd2 Bf7 17. exf5 d5 18. Nb3 Qa4 19. Rad1 b6 20. Bg2 Rad8 21. Bf4 {0-1 Kononen,K (2255)-Jarvenpaa,J (2242) FIN-chT 2324 2023 (1.4)}) 15... Rae8 {[%emt 0:11:39]} 16. exf5 {[%emt 0:03:45]} Bxf5 {[%emt 0:00:54]} (16... Bxc4 17. Nd2 Bxg5 18. Nxc4 $16) 17. Qd2 {[%emt 0:00:08]} Qd8 {[%emt 0:02:29]} 18. Bxe7 {[%emt 0:07:40]} Rxe7 {[%emt 0:00:04]} 19. Nh4 {[%emt 0:00:06]} (19. Rxe7 {simplifies} Nxe7 20. Re1 Rf6 21. Nh4) 19... Bc8 {[%emt 0:01:30]} 20. Be4 {[%emt 0:05:18]} Kh8 {[%emt 0:01:29]} 21. Re2 {[%emt 0:05:01]} (21. f4 {simplifies} Rfe8 22. Bd5 Bg4 23. Rxe7 Rxe7 24. Re1) 21... Ne5 {[%emt 0:02:33]} 22. f4 {[%emt 0:03:38]} (22. Bd5 $11 {remains equal.}) 22... Nxc4 $17 {[%emt 0:00:34]} 23. Qd5 {[%emt 0:01:33] And now Qh5 would win.} Bg4 {[%emt 0:01:01] Dodges Qh5} 24. Ree1 {[%emt 0:00:21]} (24. Qxc4 $2 Bxe2 25. Qxe2 Qe8 $19) 24... Rfe8 {[%emt 0:01:14] White must now prevent ...Nb6.} 25. Kf2 $2 {[%emt 0:05:31]} (25. Qxc4 $15 d5 26. Qxc5) 25... Nb6 $2 {[%emt 0:00:59]} (25... Qb6 $1 $19 {[%cal Rb6b2]} 26. Rab1 (26. Qxc4 $2 Qb2+ 27. Kg1 Rxe4 $19) 26... Qa6) 26. Qg5 {[%emt 0:00:33]} d5 $36 {[%emt 0:00:19][%mdl 2048] Black is really pushing.} 27. Bd3 {[%emt 0:01:20] [#]} c4 $1 {[%emt 0:00:47] The board is on fire.} 28. Bf1 {[%emt 0:00:26] [#]} (28. Bf5 $17 Re2+ {[%mdl 64] Skewer} 29. Rxe2 Rxe2+ 30. Kg1 Qxg5 31. fxg5 Bxf5 32. Nxf5) 28... Bc8 {[%emt 0:01:05]} (28... Be6 $1 $19 {has better winning chances. aiming for ...Nd7.} 29. f5 Bd7 30. Rxe7 Rxe7) 29. Nf3 $2 {[%emt 0:00:30]} (29. Rxe7 $17 Qxe7 30. Qxe7 Rxe7 31. Bg2) 29... h6 {[%emt 0:00:24]} 30. Qh4 {[%emt 0:00:30]} (30. Qg6) 30... Na4 $19 {[%emt 0:00:43][%cal Bb6a4,Ba4c3,Bc3a2][%mdl 32]} 31. Ne5 {[%emt 0:00:51] Ng6+ would be deadly.} Kg8 {[%emt 0:00:56]} ({Stronger than} 31... Nxc3 32. Ng6+ Kh7 33. Rxe7 $17 (33. Nxe7 Ne4+ 34. Kg2 Rxe7 $17)) (31... Qb6+ $2 32. Kg2 Kh7 33. Kh1) 32. Kg2 {[%emt 0:03:34]} Nxc3 {[%emt 0:00:43] Threatens to win with ...Bf5.} 33. Rac1 {[%emt 0:00:27]} (33. Qh5 $142) 33... Nxa2 {[%emt 0:00:47]} 34. Rcd1 {[%emt 0:00:43]} Nc3 {[%emt 0:00:12]} 35. Rc1 {[%emt 0:01:11] [#]} Qb6 $1 {[%emt 0:01:12]} 36. g4 {[%emt 0:00:33]} (36. Kh1 Qf2) 36... Qb2+ {[%emt 0:00:20]} 37. Kh1 {[%emt 0:00:28]} (37. Qf2 $142 Qxf2+ 38. Kxf2) 37... Ne4 {[%emt 0:00:40] Black is clearly winning.} 38. Bg2 {[%emt 0:00:25]} b5 {[%emt 0:00:24]} 39. Rf1 {[%emt 0:00:41]} a6 {[%emt 0:00:31]} 40. Rcd1 {[%emt 0:00:43]} Rxe5 {[%emt 0:00:52]} 41. fxe5 {[%emt 0:30:14]} Qxe5 {[%emt 0:30:08]} 42. g5 {[%emt 0:00:00]} hxg5 {[%emt 0:00:00]} 43. Qh5 {[%emt 0:00:00]} Re7 {[%emt 0:00:00] ...Bf5 is the strong threat.} 44. Rde1 {[%emt 0:00:00]} Bf5 {[%emt 0:00:00]} 45. Qf3 {[%emt 0:00:00]} g6 {[%emt 0:00:00] Hoping for ...Rh7.} 46. Qa3 {[%emt 0:00:00]} Rh7 {[%emt 0:00:00][%csl Gh7][%cal Re5h2]} 47. h3 {[%emt 0:00:00]} Qe6 {[%emt 0:00:00]} 48. Re3 {[%emt 0:00:00]} g4 {[%emt 0:00:00][%cal Rg4h3]} 49. Bxe4 {[%emt 0:00:00]} Bxe4+ {[%emt 0:00:00]} 50. Kg1 {[%emt 0:00:00]} Qe7 {[%emt 0:00:00]} (50... gxh3 $2 51. Qf8#) 51. Qxa6 {[%emt 0:00:00]} Rxh3 {[%emt 0:00:00] ( -> ...Rh1+)} ({Not} 51... gxh3 52. Qa8+ Kg7 53. Qa1+ c3 54. Qxc3+ Kg8 55. Qc8+ Kg7 56. Qc3+ Kg8 57. Qc8+ Kg7 58. Qc3+ $11) 52. Qa8+ {[%emt 0:00:32]} Kg7 {[%emt 0:00:38] A cool game by Petrov.   Weighted Error Value: White=0.63/Black=0.22 (precise)} 0-1

[Event "26th OIBM 2023"]
[Site "Gmund am Tegernsee"]
[Date "2023.11.01"]
[Round "5.15"]
[White "Van Foreest, Lucas"]
[Black "Hainke, Guntram"]
[Result "1-0"]
[ECO "D37"]
[WhiteElo "2540"]
[BlackElo "2266"]
[Annotator "TA"]
[PlyCount "87"]
[EventDate "2023.10.04"]
[EventType "swiss"]
[EventCountry "GER"]
[SourceTitle "playchess.com"]
[Source "ChessBase"]
[SourceQuality "1"]
[TimeControl "40/5400+30:1800+30"]

{[%evp 9,87,33,29,20,32,13,11,15,48,48,66,41,63,60,52,38,47,24,21,17,23,30,31,17,0,5,204,210,199,204,210,204,204,204,251,239,267,260,334,340,447,438,420,342,406,396,403,404,431,431,408,430,517,392,422,381,475,461,477,454,576,546,570,543,551,559,538,508,586,478,1118,1116,1055,746,754,737,763,812,896,875]} 1. c4 {[%emt 0:00:06]} e6 {[%emt 0:00:50]} 2. Nc3 {[%emt 0:00:14]} d5 {[%emt 0:00:22]} 3. d4 {[%emt 0:00:06]} a6 {[%emt 0:01:34]} 4. cxd5 {[%emt 0:00:55]} exd5 {[%emt 0:00:08]} 5. Nf3 {[%emt 0:00:11]} Nf6 {[%emt 0:00:35]} 6. Bg5 {[%emt 0:00:10] D37: Queen's Gambit Declined: 5 Bf4.} Be6 {[%emt 0:00:50]} 7. Bxf6 {[%emt 0:00:20]} Qxf6 {[%emt 0:04:33]} 8. Qb3 {[%emt 0:00:04][%csl LRb7,LRd5] The position is equal.} b6 {[%emt 0:09:20]} 9. g3 {[%emt 0:24:22]} (9. Nxd5 Qd8 10. e4 c6 $15) 9... Qd8 {[%emt 0:06:38]} 10. Bg2 {[%emt 0:02:05] [#]} (10. Ne5 $5 {[%cal Re2e4]}) 10... Be7 $146 {[%emt 0:03:25]} ({Predecessor:} 10... Nc6 11. O-O Be7 12. Rfd1 O-O 13. Rac1 Bf6 14. e3 Ne7 15. Qc2 g6 16. b4 Bg7 {0-1 Yilmaz,M (2595)-Andreikin,D (2741) EU-chT 22nd Batumi 2019 (4.3)}) 11. Ne5 {[%emt 0:04:14][%cal Rg2d5] White is more active.} c6 {[%emt 0:02:38]} 12. Rc1 {[%emt 0:02:03]} O-O {[%emt 0:07:12]} 13. Na4 {[%emt 0:01:14][%csl LRb6,LRc6]} b5 $1 {[%emt 0:08:37]} 14. Nc5 {[%emt 0:00:09]} Bxc5 {[%emt 0:01:40]} 15. Rxc5 {[%emt 0:00:14][%cal Oe1g1]} Qa5+ {[%emt 0:09:05]} 16. Rc3 {[%emt 0:12:04]} (16. Kf1 {simplifies} Nd7 17. Nxd7 Bxd7 18. e3) 16... c5 {[%emt 0:07:31]} 17. dxc5 {[%emt 0:02:10]} d4 {[%emt 0:00:23] Loses the game.} (17... Qc7 $1 $11 {and Black is okay.} 18. Nf3 (18. Bxd5 Qxe5 19. Bxe6 fxe6 $17) 18... d4) 18. Qa3 $18 {[%emt 0:00:05]} Qc7 {[%emt 0:00:30]} 19. Rc1 {[%emt 0:04:31]} (19. Bxa8 $6 dxc3 20. Qxc3 b4 $16) 19... Ra7 {[%emt 0:01:36]} 20. Nd3 {[%emt 0:00:10]} Nc6 {[%emt 0:02:43]} 21. O-O {[%emt 0:00:37]} a5 {[%emt 0:01:27]} 22. Nf4 {[%emt 0:01:29]} b4 {[%emt 0:05:41]} 23. Qa4 {[%emt 0:02:19]} Ne5 {[%emt 0:01:36]} 24. Rfd1 {[%emt 0:02:29]} Rd8 {[%emt 0:01:08]} 25. Nxe6 {[%emt 0:00:32]} fxe6 {[%emt 0:00:10]} 26. Qc2 {[%emt 0:01:22]} Qf7 {[%emt 0:02:29]} 27. Qe4 {[%emt 0:00:27] Prevents Ng4.} Qf6 {[%emt 0:00:25]} 28. c6 {[%emt 0:01:12] [#] And now c7 would win.} (28. Rxd4 $2 {too greedy.} Rxd4 29. Qb1 (29. Qxd4 $2 Nf3+ {[%mdl 64] Discovered Attack} 30. exf3 Qxd4 $19) 29... Rc7 $19) 28... Rc7 {[%emt 0:02:55]} 29. Rc5 {[%emt 0:00:19][%cal Bc1c5,Bc5a5,Ba5b5][%mdl 32] Against Rd5} (29. Rxd4 $2 {perishes.} Rxd4 30. Qb1 (30. Qxd4 $2 {is the wrong capture.} Nf3+ {[%mdl 64] Discovered Attack} 31. Bxf3 Qxd4 $19) 30... Rd2 $19) 29... Nf7 {[%emt 0:01:31]} 30. Rxa5 {[%emt 0:00:16]} e5 {[%emt 0:00:18]} 31. Qh4 {[%emt 0:08:15]} g5 {[%emt 0:03:19]} 32. Qe4 {[%emt 0:00:07]} Rd6 {[%emt 0:01:16]} 33. Rc1 {[%emt 0:01:30][%cal Bd1c1,Bc1c5,Bc5b5,Bb5b7,Bb7b8,Bb8b6][%mdl 32] White is clearly winning.} Kg7 {[%emt 0:02:37]} 34. Rb5 {[%emt 0:00:47]} Re6 {[%emt 0:02:29]} 35. Rb7 {[%emt 0:00:38]} Ree7 {[%emt 0:01:11]} 36. Qd5 {[%emt 0:00:14]} Nd6 {[%emt 0:01:07]} 37. Rxc7 {[%emt 0:00:03]} Rxc7 {[%emt 0:00:05]} 38. Rc5 {[%emt 0:00:36]} Nf7 {[%emt 0:03:19]} 39. Bf3 {[%emt 0:00:17]} Kg6 {[%emt 0:01:30]} (39... Nd6 $142 40. Qxe5 Qxe5 41. Rxe5 Kf6) 40. Rb5 {[%emt 0:03:56]} Qe7 {[%emt 0:00:30]} 41. Be4+ {[%emt 0:30:16]} Kf6 {[%emt 0:31:19]} 42. Rb7 {[%emt 0:00:47] [#] Qa5 is the strong threat.} Nd8 {[%emt 0:00:51]} 43. Rb8 {[%emt 0:01:22]} Nxc6 {[%emt 0:00:00] Black is weak on the light squares} 44. Rb6 {[%emt 0:00:00] Weighted Error Value: White=0.18 (very precise) /Black=0.36} 1-0

[Event "26th OIBM 2023"]
[Site "Gmund am Tegernsee"]
[Date "2023.11.01"]
[Round "5.16"]
[White "Gallego Alcaraz, Andres Felipe"]
[Black "Stricker, Florian"]
[Result "1-0"]
[ECO "E66"]
[WhiteElo "2495"]
[BlackElo "2238"]
[Annotator "ChessBase"]
[PlyCount "43"]
[EventDate "2023.10.04"]
[EventType "swiss"]
[EventCountry "GER"]
[SourceTitle "playchess.com"]
[Source "ChessBase"]
[SourceQuality "1"]
[TimeControl "40/5400+30:1800+30"]

1. d4 {[%emt 0:00:04]} d6 {[%emt 0:00:08]} 2. Nf3 {[%emt 0:00:29]} Nf6 {[%emt 0:00:08]} 3. c4 {[%emt 0:00:14]} g6 {[%emt 0:00:10]} 4. Nc3 {[%emt 0:00:07]} Bg7 {[%emt 0:00:08]} 5. g3 {[%emt 0:00:14]} O-O {[%emt 0:00:16]} 6. Bg2 {[%emt 0:00:07]} Nc6 {[%emt 0:00:14]} 7. O-O {[%emt 0:00:29]} Bf5 {[%emt 0:00:38]} 8. d5 {[%emt 0:00:35]} Na5 {[%emt 0:01:01]} 9. b3 {[%emt 0:00:36]} c5 {[%emt 0:00:43]} 10. Bb2 {[%emt 0:04:22]} Rb8 {[%emt 0:23:29]} 11. Nd2 {[%emt 0:06:31]} a6 {[%emt 0:03:20]} 12. e4 {[%emt 0:04:30]} Bd7 {[%emt 0:01:18]} 13. Qc2 {[%emt 0:03:42]} b5 {[%emt 0:01:27]} 14. h3 {[%emt 0:07:36]} Qc7 {[%emt 0:06:55]} 15. cxb5 {[%emt 0:05:20]} axb5 {[%emt 0:01:35]} 16. f4 {[%emt 0:04:01]} Rfc8 {[%emt 0:23:46]} 17. Ne2 {[%emt 0:07:11]} c4 {[%emt 0:12:28]} 18. Rfc1 {[%emt 0:01:31]} cxb3 {[%emt 0:14:50]} 19. Qxc7 {[%emt 0:00:23]} Rxc7 {[%emt 0:00:06]} 20. Rxc7 {[%emt 0:01:00]} Nxd5 {[%emt 0:00:30]} 21. exd5 {[%emt 0:02:08]} Bxb2 {[%emt 0:00:11]} 22. Nxb3 {[%emt 0:50:20]} 1-0